bitfinex/quotes_BTCUSD_20250826
["timestamp","ask_amount","ask_price","bid_price","bid_amount"]
[1756246327076,1.38717292,112050.0,112040.0,0.07168755]
[1756246327291,3.63102192,112050.0,112040.0,0.22504755]
[1756246327701,2.79416974,112050.0,112040.0,0.22504755]
[1756246327905,0.96869683,112050.0,112040.0,0.22204755]
[1756246328318,0.96869683,112050.0,112040.0,0.22304755]
[1756246329143,0.96869683,112050.0,112040.0,0.22404755]
[1756246329345,0.96869683,112050.0,112040.0,0.07068755]
[1756246329550,0.96869683,112050.0,112040.0,0.22404755]
[1756246329960,0.96869683,112050.0,112040.0,0.07068755]
[1756246330158,0.96869683,112050.0,112040.0,0.22404755]
[1756246331573,0.97773632,112050.0,112040.0,0.22904755]
[1756246331802,0.97773632,112050.0,112040.0,0.42995998]
[1756246332348,0.45924458,112050.0,112040.0,0.42995998]
[1756246332573,0.95088732,112050.0,112040.0,0.42995998]
[1756246332770,0.95088732,112050.0,112040.0,0.25145231]
[1756246333394,0.35396949,112050.0,112040.0,0.42995998]
[1756246333592,0.01728112,112070.0,112060.0,0.17847581]
[1756246333797,0.44967453,112070.0,112060.0,0.37476351]
[1756246333995,0.65497742,112070.0,112060.0,0.37253257]
[1756246334194,0.6141671,112070.0,112060.0,0.19405676]
[1756246334399,0.9541671,112070.0,112060.0,0.19405676]
[1756246334575,0.9541671,112070.0,112060.0,0.37253257]
[1756246334778,0.35728112,112070.0,112060.0,0.37253257]
[1756246334984,0.77570721,112070.0,112060.0,0.37353257]
[1756246335550,0.35728112,112070.0,112060.0,0.37353257]
[1756246335954,0.77570721,112070.0,112060.0,0.37353257]
[1756246336155,0.77570721,112070.0,112060.0,0.37453257]
[1756246337425,0.35728112,112070.0,112060.0,0.37453257]
[1756246338781,0.01728112,112070.0,112060.0,0.37353257]
[1756246339001,0.01728112,112070.0,112060.0,0.37253257]
[1756246339214,0.01728112,112070.0,112060.0,0.37353257]
[1756246340257,0.01728112,112070.0,112060.0,0.37553257]
[1756246341142,0.01728112,112070.0,112060.0,0.77553257]
[1756246341488,0.01728112,112070.0,112060.0,0.77353257]
[1756246341694,0.01728112,112070.0,112060.0,0.77349257]
[1756246341889,0.01728112,112070.0,112060.0,0.77649257]
[1756246342096,0.01728112,112070.0,112060.0,0.62317257]
[1756246342333,0.01728112,112070.0,112060.0,0.77649257]
[1756246342538,0.01728112,112070.0,112060.0,0.77549257]
[1756246342746,0.01728112,112070.0,112060.0,0.77749257]
[1756246343866,0.01728112,112070.0,112060.0,0.77745257]
[1756246344083,0.01728112,112070.0,112060.0,0.79587866]
[1756246344262,0.01728112,112070.0,112060.0,0.37745257]
[1756246344464,0.01728112,112070.0,112060.0,1.19587866]
[1756246345250,0.01728112,112070.0,112060.0,0.62417257]
[1756246345422,0.01728112,112070.0,112060.0,0.77745257]
[1756246348367,0.01728112,112070.0,112060.0,0.37745257]
[1756246348958,0.01728112,112070.0,112060.0,0.77745257]
[1756246349381,0.01728112,112070.0,112060.0,0.62417257]
[1756246349535,0.01728112,112070.0,112060.0,0.77745257]
[1756246350016,0.01728112,112070.0,112060.0,0.62417257]
[1756246350236,0.6161671,112070.0,112060.0,0.77741257]
[1756246350848,0.43770721,112070.0,112060.0,0.37741257]
[1756246351300,0.43570721,112070.0,112060.0,0.37741257]
[1756246351527,0.6141671,112070.0,112060.0,0.37741257]
[1756246353294,0.6161671,112070.0,112060.0,0.19393676]
[1756246353500,0.6161671,112070.0,112060.0,0.37241257]
[1756246353696,0.6161671,112070.0,112060.0,0.37446257]
[1756246354134,0.6161671,112070.0,112060.0,0.37741257]
[1756246356002,0.9561671,112070.0,112060.0,0.04069676]
[1756246356210,0.9561671,112070.0,112060.0,0.15824]
[1756246356638,0.9561671,112070.0,112060.0,0.34099675]
[1756246356838,0.9561671,112070.0,112060.0,0.34171581]
[1756246357043,0.35928112,112070.0,112060.0,0.34171581]
[1756246357247,0.9561671,112070.0,112060.0,0.34171581]
[1756246357460,0.9561671,112070.0,112060.0,0.39373613]
[1756246358823,0.53774101,112070.0,112060.0,0.39373613]
[1756246359031,0.9561671,112070.0,112060.0,0.39373613]
[1756246359630,0.9561671,112070.0,112060.0,0.39078613]
[1756246360035,0.77770721,112070.0,112060.0,0.39389613]
[1756246360246,0.9561671,112070.0,112060.0,0.39389613]
[1756246360651,0.9561671,112070.0,112060.0,0.23549613]
[1756246360930,0.9594071,112070.0,112060.0,0.21022032]
[1756246361131,0.9561671,112070.0,112060.0,0.21022032]
[1756246361336,0.9561671,112070.0,112060.0,0.38869613]
[1756246361561,0.9561671,112070.0,112060.0,0.21022032]
[1756246362035,0.9561671,112070.0,112060.0,0.38869613]
[1756246362539,0.9561671,112070.0,112060.0,0.21022032]
[1756246362973,0.9594071,112070.0,112060.0,0.21022032]
[1756246363178,0.9594071,112070.0,112060.0,0.1582]
[1756246363549,0.53774101,112070.0,112060.0,0.33667581]
[1756246363762,0.9561671,112070.0,112060.0,0.33667581]
[1756246364952,0.9594071,112070.0,112060.0,0.1582]
[1756246365190,0.9594071,112070.0,112060.0,0.19218005]
[1756246365387,0.9594071,112070.0,112060.0,0.37065586]
[1756246366566,0.9594071,112070.0,112060.0,0.19218005]
[1756246368559,0.9561671,112070.0,112060.0,0.37065586]
[1756246369504,0.9561671,112070.0,112060.0,0.43929586]
[1756246371224,0.9561671,112070.0,112060.0,0.10762005]
[1756246371555,0.9561671,112070.0,112060.0,0.43925586]
[1756246372886,0.9561671,112070.0,112060.0,0.26078005]
[1756246373384,0.53774101,112070.0,112060.0,0.44447586]
[1756246373586,0.9561671,112070.0,112060.0,0.44447586]
[1756246373917,0.9561671,112070.0,112060.0,0.44136586]
[1756246374590,0.9561671,112070.0,112060.0,0.10762005]
[1756246374794,0.9561671,112070.0,112060.0,0.26078005]
[1756246375411,0.9561671,112070.0,112060.0,0.43925586]
[1756246380226,0.9561671,112070.0,112060.0,0.26078005]
[1756246380723,0.9561671,112070.0,112060.0,0.43925586]
[1756246381023,0.9561671,112070.0,112060.0,0.44447586]
[1756246381237,0.53774101,112070.0,112060.0,0.44447586]
[1756246381453,0.35728112,112070.0,112060.0,0.44447586]
[1756246381919,0.01728112,112070.0,112060.0,0.29131586]
[1756246382146,0.01728112,112070.0,112060.0,0.84443586]
[1756246384844,0.01728112,112070.0,112060.0,0.69131586]
[1756246385063,0.01728112,112070.0,112060.0,0.84443586]
[1756246387736,0.01728112,112070.0,112060.0,0.69131586]
[1756246387997,0.01728112,112070.0,112060.0,0.84439586]
[1756246388708,0.01728112,112070.0,112060.0,1.26282195]
[1756246391400,0.01728112,112070.0,112060.0,1.26082195]
[1756246391649,0.01728112,112070.0,112060.0,1.26382195]
[1756246391897,0.01728112,112070.0,112060.0,1.35228397]
[1756246392139,0.01728112,112070.0,112060.0,1.38411897]
[1756246393076,0.01728112,112070.0,112060.0,0.81261288]
[1756246393334,0.01728112,112070.0,112060.0,1.38407897]
[1756246394430,0.01728112,112070.0,112060.0,1.23103897]
[1756246394702,0.01728112,112070.0,112060.0,1.38407897]
[1756246401068,0.01728112,112070.0,112060.0,1.38403897]
[1756246403889,0.01728112,112070.0,112060.0,1.23103897]
[1756246404058,0.01728112,112070.0,112060.0,1.38403897]
[1756246404511,0.01728112,112070.0,112060.0,1.23103897]
[1756246404723,0.01728112,112070.0,112060.0,1.38403897]
[1756246405378,0.01728112,112070.0,112060.0,0.96561288]
[1756246405543,0.01728112,112070.0,112060.0,1.38403897]
[1756246405966,0.01728112,112070.0,112060.0,1.38399897]
[1756246406323,0.01728112,112070.0,112060.0,1.23103897]
[1756246406512,0.01728112,112070.0,112060.0,1.38399897]
[1756246408485,0.01728112,112070.0,112060.0,1.23103897]
[1756246408663,0.01728112,112070.0,112060.0,1.38399897]
[1756246408872,0.01728112,112070.0,112060.0,1.23103897]
[1756246409072,0.01728112,112070.0,112060.0,1.38399897]
[1756246410149,0.01728112,112070.0,112060.0,1.23103897]
[1756246410360,0.01728112,112070.0,112060.0,1.38399897]
[1756246414027,0.01728112,112070.0,112060.0,0.96557288]
[1756246414179,0.01728112,112070.0,112060.0,1.59847897]
[1756246414482,0.01728112,112070.0,112060.0,1.44551897]
[1756246414722,0.01728112,112070.0,112060.0,1.59843897]
[1756246415424,0.01728112,112070.0,112060.0,1.8063616]
[1756246417296,0.01728112,112070.0,112060.0,1.82381062]
[1756246419220,0.01728112,112070.0,112060.0,1.67089062]
[1756246419466,0.01728112,112070.0,112060.0,1.61491427]
[1756246422749,0.0223469,112080.0,112070.0,0.19590891]
[1756246422965,0.0223469,112080.0,112070.0,1.24605728]
[1756246423123,0.0223469,112080.0,112070.0,1.25113728]
[1756246423339,0.0223469,112080.0,112070.0,1.32060428]
[1756246423526,0.0223469,112080.0,112070.0,1.87348428]
[1756246423726,0.0223469,112080.0,112070.0,1.72060428]
[1756246423919,0.0223469,112080.0,112070.0,1.87344428]
[1756246424119,0.0223469,112080.0,112070.0,1.87944428]
[1756246424360,0.0223469,112080.0,112070.0,1.91941271]
[1756246424679,0.0223469,112080.0,112070.0,1.92341271]
[1756246430367,0.0223469,112080.0,112070.0,1.92337271]
[1756246432289,0.0223469,112080.0,112070.0,1.77057271]
[1756246432482,0.0223469,112080.0,112070.0,1.92337271]
[1756246435844,0.0223469,112080.0,112070.0,1.92333271]
[1756246436264,1e-08,112080.0,112070.0,1.92333271]
[1756246437077,1e-08,112080.0,112070.0,1.91333271]
[1756246437338,1e-08,112080.0,112070.0,1.92533271]
[1756246439522,1e-08,112080.0,112070.0,2.13390942]
[1756246443833,1e-08,112080.0,112070.0,2.13386942]
[1756246444441,1e-08,112080.0,112070.0,1.82083488]
[1756246445503,1e-08,112080.0,112070.0,2.13386942]
[1756246446298,1e-08,112080.0,112070.0,1.82083488]
[1756246446505,0.00206001,112080.0,112070.0,1.27735562]
[1756246446703,0.00206001,112080.0,112070.0,1.74815016]
[1756246447586,1e-08,112080.0,112070.0,1.74815016]
[1756246447806,0.00210001,112080.0,112070.0,1.27735562]
[1756246448016,0.00210001,112080.0,112070.0,1.74307016]
[1756246450867,0.00210001,112080.0,112070.0,1.74817016]
[1756246451076,1e-08,112080.0,112070.0,1.74817016]
[1756246452762,0.00210001,112080.0,112070.0,1.0599066]
[1756246452966,0.00210001,112080.0,112070.0,1.2125466]
[1756246453177,0.00210001,112080.0,112070.0,1.2145266]
[1756246453394,0.00210001,112080.0,112070.0,1.52756114]
[1756246453604,0.00210001,112080.0,112070.0,1.53068114]
[1756246454950,0.00210001,112080.0,112070.0,1.2176466]
[1756246455336,0.00210001,112080.0,112070.0,1.53068114]
[1756246455514,0.00210001,112080.0,112070.0,1.2176466]
[1756246455939,0.00210001,112080.0,112070.0,1.52558114]
[1756246456142,0.00210001,112080.0,112070.0,1.27558114]
[1756246456363,0.00210001,112080.0,112070.0,1.52558114]
[1756246456896,0.00210001,112080.0,112070.0,1.53068114]
[1756246457231,1e-08,112080.0,112070.0,1.53068114]
[1756246457860,0.00210001,112080.0,112070.0,1.2176466]
[1756246458054,0.00210001,112080.0,112070.0,1.53068114]
[1756246458299,1e-08,112080.0,112070.0,1.53068114]
[1756246458714,1e-08,112080.0,112070.0,1.54813016]
[1756246458925,1e-08,112080.0,112070.0,1.82077488]
[1756246461103,1e-08,112080.0,112070.0,1.57077488]
[1756246461286,1e-08,112080.0,112070.0,1.82077488]
[1756246462482,0.0002,112090.0,112080.0,0.19589298]
[1756246462684,0.0002,112090.0,112080.0,0.7753543]
[1756246462859,0.0002,112090.0,112080.0,0.7804543]
[1756246463074,0.0002,112090.0,112080.0,1.1804543]
[1756246463275,0.0002,112090.0,112080.0,1.2072833]
[1756246463715,0.0002,112090.0,112080.0,1.20733085]
[1756246464238,0.0002,112090.0,112080.0,1.21333085]
[1756246464464,0.0002,112090.0,112080.0,1.21733085]
[1756246464675,0.0002,112090.0,112080.0,1.28593085]
[1756246466593,0.0023,112090.0,112080.0,0.82033631]
[1756246466799,0.0023,112090.0,112080.0,1.28083085]
[1756246467587,0.0023,112090.0,112080.0,0.81523631]
[1756246467792,0.0023,112090.0,112080.0,1.28083085]
[1756246469547,0.0023,112090.0,112080.0,1.49527085]
[1756246470632,0.0023,112090.0,112080.0,1.49725085]
[1756246470812,0.0023,112090.0,112080.0,1.50037085]
[1756246473299,0.0002,112090.0,112080.0,1.75037085]
[1756246474231,0.0002,112090.0,112080.0,2.26340539]
[1756246478051,0.0002,112090.0,112080.0,1.95037085]
[1756246478467,0.0002,112090.0,112080.0,1.95025085]
[1756246478845,0.0002,112090.0,112080.0,1.63721631]
[1756246479055,0.0002,112090.0,112080.0,1.95025085]
[1756246485911,0.0002,112090.0,112080.0,1.79781085]
[1756246486093,0.0002,112090.0,112080.0,1.95021085]
[1756246487975,0.00233,112090.0,112080.0,1.63713631]
[1756246488194,0.0002,112090.0,112080.0,1.95017085]
[1756246492094,0.0002,112090.0,112080.0,1.95013085]
[1756246492534,0.0002,112090.0,112080.0,1.63709631]
[1756246492738,0.0002,112090.0,112080.0,1.95013085]
[1756246494212,0.0002,112090.0,112080.0,1.70013085]
[1756246494456,0.0002,112090.0,112080.0,1.95013085]
[1756246494809,0.0002,112090.0,112080.0,1.70013085]
[1756246495016,0.0002,112090.0,112080.0,1.95013085]
[1756246495846,0.0002,112090.0,112080.0,1.70013085]
[1756246496057,0.0002,112090.0,112080.0,1.95013085]
[1756246496378,0.0002,112090.0,112080.0,1.79781085]
[1756246496591,0.0002,112090.0,112080.0,1.95009085]
[1756246498952,0.00233,112090.0,112080.0,1.23477631]
[1756246499162,0.31536454,112090.0,112080.0,1.18195631]
[1756246499368,0.00233,112090.0,112080.0,1.18195631]
[1756246500833,0.00233,112090.0,112080.0,1.15512731]
[1756246501035,0.00233,112090.0,112080.0,1.16044731]
[1756246501239,0.0002,112090.0,112080.0,1.47348185]
[1756246501911,0.0002,112090.0,112080.0,1.16044731]
[1756246502286,0.0002,112090.0,112080.0,1.47348185]
[1756246503326,0.31323454,112090.0,112080.0,1.16044731]
[1756246504561,0.0002,112090.0,112080.0,1.16044731]
[1756246504738,0.31323454,112090.0,112080.0,1.16044731]
[1756246504944,0.0002,112090.0,112080.0,1.16044731]
[1756246505147,0.31323454,112090.0,112080.0,1.16044731]
[1756246505842,0.0002,112090.0,112080.0,1.16044731]
[1756246506082,0.31323454,112090.0,112080.0,1.16044731]
[1756246506766,0.31323454,112090.0,112080.0,1.18727631]
[1756246507511,0.0002,112090.0,112080.0,1.18727631]
[1756246507649,0.31323454,112090.0,112080.0,1.18727631]
[1756246507860,0.0002,112090.0,112080.0,1.18727631]
[1756246508059,0.31323454,112090.0,112080.0,1.18727631]
[1756246508467,0.0002,112090.0,112080.0,1.70031085]
[1756246508664,0.0002,112090.0,112080.0,1.38727631]
[1756246509074,0.0002,112090.0,112080.0,1.70031085]
[1756246509888,0.0002,112090.0,112080.0,1.38727631]
[1756246510083,0.0002,112090.0,112080.0,1.70031085]
[1756246510311,0.0002,112090.0,112080.0,1.38719631]
[1756246510792,0.31323454,112090.0,112080.0,1.38719631]
[1756246510998,0.0002,112090.0,112080.0,1.38719631]
[1756246511455,0.31323454,112090.0,112080.0,1.38719631]
[1756246512879,0.0002,112090.0,112080.0,1.38719631]
[1756246513065,0.31529454,112090.0,112080.0,1.18719631]
[1756246513267,0.31323454,112090.0,112080.0,1.18719631]
[1756246514527,0.0002,112090.0,112080.0,1.18719631]
[1756246514741,0.31323454,112090.0,112080.0,1.18719631]
[1756246515440,0.0002,112090.0,112080.0,1.18719631]
[1756246515911,0.00226,112090.0,112080.0,1.18719631]
[1756246516127,0.0002,112090.0,112080.0,1.18719631]
[1756246516352,0.31323454,112090.0,112080.0,1.18719631]
[1756246518134,0.31529454,112090.0,112080.0,1.18187631]
[1756246518342,0.00226,112090.0,112080.0,1.18183631]
[1756246518536,0.31529454,112090.0,112080.0,1.02967631]
[1756246518706,0.31529454,112090.0,112080.0,1.16434729]
[1756246518905,0.31854454,112090.0,112080.0,1.16434729]
[1756246519511,0.31529454,112090.0,112080.0,1.16434729]
[1756246519740,0.0002,112090.0,112080.0,1.38703631]
[1756246520170,0.0002,112090.0,112080.0,1.70007085]
[1756246521078,0.0002,112090.0,112080.0,1.69007085]
[1756246521292,8.42e-06,112090.0,112080.0,2.00810539]
[1756246521969,8.42e-06,112090.0,112080.0,2.01510539]
[1756246524135,8.42e-06,112090.0,112080.0,2.26510539]
[1756246528772,8.42e-06,112090.0,112080.0,2.11298539]
[1756246528980,8.42e-06,112090.0,112080.0,1.63899631]
[1756246529184,8.42e-06,112090.0,112080.0,2.26506539]
[1756246531444,0.00137633,112100.0,112090.0,0.69146258]
[1756246531640,0.00137633,112100.0,112090.0,0.97202465]
[1756246531846,0.00137633,112100.0,112090.0,0.97418465]
[1756246532229,0.00137633,112100.0,112090.0,1.40100865]
[1756246532629,0.00137633,112100.0,112090.0,1.40500865]
[1756246532833,0.00137633,112100.0,112090.0,1.41100865]
[1756246533042,0.25137633,112100.0,112090.0,1.41100865]
[1756246533557,0.25137633,112100.0,112090.0,1.25896865]
[1756246533974,0.25137633,112100.0,112090.0,1.41100865]
[1756246535374,0.25343633,112100.0,112090.0,1.41100865]
[1756246535950,0.25343633,112100.0,112090.0,1.25896865]
[1756246536171,0.25137633,112100.0,112090.0,1.41100865]
[1756246537420,0.25137633,112100.0,112090.0,1.25896865]
[1756246537620,0.25137633,112100.0,112090.0,1.41100865]
[1756246547420,0.25137633,112100.0,112090.0,1.48365337]
[1756246547652,0.25137633,112100.0,112090.0,1.79668791]
[1756246547872,0.25137633,112100.0,112090.0,1.81413693]
[1756246548086,0.25137633,112100.0,112090.0,1.50110239]
[1756246548298,0.25137633,112100.0,112090.0,1.18406785]
[1756246548508,0.25137633,112100.0,112090.0,1.42445767]
[1756246548718,0.25137633,112100.0,112090.0,1.42245767]
[1756246549042,0.25137633,112100.0,112090.0,1.42945767]
[1756246549261,0.25137633,112100.0,112090.0,1.42545767]
[1756246549689,0.24090614,112100.0,112090.0,1.42545767]
[1756246550636,0.24090614,112100.0,112090.0,1.43045767]
[1756246551259,0.24090614,112100.0,112090.0,1.11742313]
[1756246551384,0.24090614,112100.0,112090.0,1.43045767]
[1756246552829,0.24090614,112100.0,112090.0,1.27841767]
[1756246553021,0.24090614,112100.0,112090.0,1.43093767]
[1756246558856,0.23090614,112100.0,112090.0,1.43093767]
[1756246559201,0.23090614,112100.0,112090.0,1.11790313]
[1756246559617,0.23090614,112100.0,112090.0,1.43093767]
[1756246560258,0.23090614,112100.0,112090.0,1.11790313]
[1756246560500,0.23090614,112100.0,112090.0,1.43093767]
[1756246564743,0.23090614,112100.0,112090.0,1.43061767]
[1756246565166,0.23090614,112100.0,112090.0,0.96538313]
[1756246565375,0.23296614,112100.0,112090.0,1.43057767]
[1756246565889,0.23090614,112100.0,112090.0,1.43057767]
[1756246567855,0.22018441,112100.0,112090.0,1.43057767]
[1756246569686,0.22225441,112100.0,112090.0,1.43057767]
[1756246570276,0.22018441,112100.0,112090.0,1.43057767]
[1756246571274,0.22018441,112100.0,112090.0,1.11754313]
[1756246571473,0.22018441,112100.0,112090.0,1.43057767]
[1756246573052,0.22018441,112100.0,112090.0,1.11754313]
[1756246573269,0.22018441,112100.0,112090.0,1.43057767]
[1756246575901,0.22018441,112100.0,112090.0,1.18614313]
[1756246576104,0.22018441,112100.0,112090.0,1.49917767]
[1756246577666,0.22018441,112100.0,112090.0,1.34701767]
[1756246577882,0.19899258,112100.0,112090.0,1.49905767]
[1756246578279,0.19899258,112100.0,112090.0,1.49901767]
[1756246579318,0.19899258,112100.0,112090.0,1.34701767]
[1756246579524,0.19899258,112100.0,112090.0,1.49901767]
[1756246579731,0.19899258,112100.0,112090.0,1.34701767]
[1756246579937,0.20106258,112100.0,112090.0,1.49901767]
[1756246580867,0.20106258,112100.0,112090.0,1.71341767]
[1756246581295,0.20106258,112100.0,112090.0,1.71033767]
[1756246581476,0.20106258,112100.0,112090.0,1.71337767]
[1756246582073,0.20106258,112100.0,112090.0,1.71033767]
[1756246582454,0.20106258,112100.0,112090.0,1.71337767]
[1756246583348,0.19899258,112100.0,112090.0,1.71337767]
[1756246587827,0.18827111,112100.0,112090.0,1.66494313]
[1756246588247,0.18827111,112100.0,112090.0,1.97797767]
[1756246592927,0.18827111,112100.0,112090.0,1.71337767]
[1756246593129,1e-08,112100.0,112090.0,2.02641221]
[1756246594967,1e-08,112100.0,112090.0,1.40034313]
[1756246595165,1e-08,112100.0,112090.0,2.02641221]
[1756246595398,1e-08,112100.0,112090.0,1.71337767]
[1756246597240,1e-08,112100.0,112090.0,1.24834313]
[1756246597241,0.00214001,112100.0,112090.0,1.24834313]
[1756246597460,0.00214001,112100.0,112090.0,1.70817767]
[1756246597909,0.00214001,112100.0,112090.0,1.71014767]
[1756246598136,0.00214001,112100.0,112090.0,1.24818313]
[1756246598375,0.00214001,112100.0,112090.0,1.71329767]
[1756246601192,0.00214001,112100.0,112090.0,1.40026313]
[1756246601371,0.00214001,112100.0,112090.0,1.71329767]
[1756246602091,0.00214001,112100.0,112090.0,1.40014313]
[1756246602306,0.00214001,112100.0,112090.0,1.71317767]
[1756246603182,0.41485454,112120.0,112110.0,0.17839621]
[1756246603395,0.41485454,112120.0,112110.0,0.47749906]
[1756246603805,0.41485454,112120.0,112110.0,0.87749906]
[1756246604468,0.41485454,112120.0,112110.0,0.90732106]
[1756246604691,0.41485454,112120.0,112110.0,0.91232106]
[1756246604885,0.41485454,112120.0,112110.0,0.98092106]
[1756246605242,0.10182,112120.0,112110.0,0.98092106]
[1756246605889,0.10182,112120.0,112110.0,1.2939556]
[1756246606871,0.10182,112120.0,112110.0,1.30310297]
[1756246607713,0.10182,112120.0,112110.0,1.30814297]
[1756246608319,0.10182,112120.0,112110.0,0.99006843]
[1756246608548,0.10182,112120.0,112110.0,1.03079032]
[1756246609650,0.10182,112120.0,112110.0,1.24519032]
[1756246612885,0.10182,112120.0,112110.0,1.24826032]
[1756246613190,0.10182,112120.0,112110.0,1.24519032]
[1756246613938,0.10182,112120.0,112110.0,1.56129486]
[1756246614526,0.10182,112120.0,112110.0,1.55822486]
[1756246614935,0.10182,112120.0,112110.0,1.24826032]
[1756246615161,0.10182,112120.0,112110.0,1.25023032]
[1756246617028,0.10182,112120.0,112110.0,1.56326486]
[1756246617223,0.10182,112120.0,112110.0,1.55214749]
[1756246618170,0.10182,112120.0,112110.0,1.54907749]
[1756246618815,0.10182,112120.0,112110.0,1.39711749]
[1756246619060,0.10182,112120.0,112110.0,1.54907749]
[1756246620443,0.10182,112120.0,112110.0,1.23604295]
[1756246621080,0.10024,112120.0,112110.0,1.55411749]
[1756246621225,0.10024,112120.0,112110.0,1.24108295]
[1756246621448,0.10024,112120.0,112110.0,1.55411749]
[1756246630503,0.10024,112120.0,112110.0,1.24108295]
[1756246630716,0.10024,112120.0,112110.0,1.55411749]
[1756246635498,0.10024,112120.0,112110.0,1.24108295]
[1756246635718,0.10024,112120.0,112110.0,1.55411749]
[1756246636643,0.10024,112120.0,112110.0,1.40215749]
[1756246636846,0.10024,112120.0,112110.0,1.55411749]
[1756246638044,0.10024,112120.0,112110.0,1.08912295]
[1756246638250,0.10024,112120.0,112110.0,1.24108295]
[1756246638460,0.10024,112120.0,112110.0,1.55411749]
[1756246640344,0.10182,112120.0,112110.0,0.59262093]
[1756246640555,0.59323484,112120.0,112110.0,0.59262093]
[1756246640761,0.41485454,112120.0,112110.0,0.74458093]
[1756246641178,0.90626938,112120.0,112110.0,0.71775893]
[1756246641387,0.41485454,112120.0,112110.0,0.71775893]
[1756246641593,0.72788908,112120.0,112110.0,0.71775893]
[1756246641797,0.41485454,112120.0,112110.0,0.71775893]
[1756246641984,0.44168054,112120.0,112110.0,0.71775893]
[1756246642500,0.62006084,112120.0,112110.0,0.71775893]
[1756246643128,0.62006084,112120.0,112110.0,0.67703704]
[1756246644800,0.3070263,112120.0,112110.0,0.67703704]
[1756246645002,0.3070263,112120.0,112110.0,0.52507704]
[1756246645003,0.62006084,112120.0,112110.0,0.52507704]
[1756246645179,0.62006084,112120.0,112110.0,0.67703704]
[1756246645610,0.3070263,112120.0,112110.0,0.52507704]
[1756246645817,0.62006084,112120.0,112110.0,0.67703704]
[1756246646210,0.62006084,112120.0,112110.0,0.52507704]
[1756246646432,0.62006084,112120.0,112110.0,0.67703704]
[1756246646653,0.128646,112120.0,112110.0,0.67703704]
[1756246646901,0.128646,112120.0,112110.0,0.68219704]
[1756246647410,0.44168054,112120.0,112110.0,0.68219704]
[1756246648356,0.44168054,112120.0,112110.0,0.72149913]
[1756246650157,0.127066,112120.0,112110.0,1.10717839]
[1756246650359,0.10024,112120.0,112110.0,1.10717839]
[1756246650579,0.10024,112120.0,112110.0,1.13400339]
[1756246650794,0.10024,112120.0,112110.0,0.82096885]
[1756246651243,0.10024,112120.0,112110.0,1.22096885]
[1756246653701,0.41327454,112120.0,112110.0,0.82096885]
[1756246653917,0.41327454,112120.0,112110.0,0.74840413]
[1756246655881,0.75327454,112120.0,112110.0,0.72157913]
[1756246656282,0.78009854,112120.0,112110.0,0.72157913]
[1756246656662,0.467064,112120.0,112110.0,0.72157913]
[1756246656842,0.78009854,112120.0,112110.0,0.72157913]
[1756246658149,0.467064,112120.0,112110.0,0.72157913]
[1756246658358,0.78009854,112120.0,112110.0,1.12157913]
[1756246658851,0.467064,112120.0,112110.0,1.12157913]
[1756246659052,0.78009854,112120.0,112110.0,1.12157913]
[1756246660232,0.127064,112120.0,112110.0,1.23049017]
[1756246660444,0.10024,112120.0,112110.0,1.54352471]
[1756246660625,0.10024,112120.0,112110.0,1.57034671]
[1756246666525,0.10024,112120.0,112110.0,2.08338125]
[1756246667360,0.10024,112120.0,112110.0,1.76534671]
[1756246667566,0.10024,112120.0,112110.0,1.76234671]
[1756246667768,0.10024,112120.0,112110.0,1.77234671]
[1756246669803,0.10024,112120.0,112110.0,2.08538125]
[1756246670015,0.10024,112120.0,112110.0,1.77222671]
[1756246670836,0.10024,112120.0,112110.0,1.62030671]
[1756246671036,0.10024,112120.0,112110.0,1.77222671]
[1756246671852,0.10024,112120.0,112110.0,1.62030671]
[1756246672134,0.10024,112120.0,112110.0,1.77222671]
[1756246672411,0.10024,112120.0,112110.0,2.08526125]
[1756246676833,0.10024,112120.0,112110.0,1.93334125]
[1756246677247,0.10024,112120.0,112110.0,2.08526125]
[1756246677453,0.10024,112120.0,112110.0,1.93334125]
[1756246677656,0.10024,112120.0,112110.0,2.08526125]
[1756246680244,0.10182,112120.0,112110.0,0.70211217]
[1756246680489,0.10182,112120.0,112110.0,0.62920832]
[1756246680702,0.59323484,112120.0,112110.0,0.5377463]
[1756246680917,0.41485454,112120.0,112110.0,0.6628443]
[1756246681120,0.44167854,112120.0,112110.0,0.5109243]
[1756246681331,0.128644,112120.0,112110.0,0.6628443]
[1756246681549,0.128644,112120.0,112110.0,0.72828756]
[1756246681757,0.128644,112120.0,112110.0,1.0413221]
[1756246682374,0.128644,112120.0,112110.0,1.0444221]
[1756246682569,0.128644,112120.0,112110.0,1.0465121]
[1756246683206,0.128644,112120.0,112110.0,0.57946756]
[1756246683419,0.128644,112120.0,112110.0,1.14859525]
[1756246683625,0.128644,112120.0,112110.0,1.15068525]
[1756246683990,0.127064,112120.0,112110.0,1.15068525]
[1756246684407,0.127064,112120.0,112110.0,1.15072525]
[1756246684772,0.127064,112120.0,112110.0,0.99880525]
[1756246684979,0.127064,112120.0,112110.0,1.15072525]
[1756246685369,0.127064,112120.0,112110.0,1.55072525]
[1756246685780,0.127064,112120.0,112110.0,1.64218727]
[1756246685781,0.10024,112120.0,112110.0,1.64218727]
[1756246685959,0.10024,112120.0,112110.0,1.51709027]
[1756246686165,0.10024,112120.0,112110.0,1.66901027]
[1756246686366,0.10024,112120.0,112110.0,1.68645929]
[1756246687793,0.10024,112120.0,112110.0,1.53453929]
[1756246687998,0.10024,112120.0,112110.0,1.68645929]
[1756246689229,0.10024,112120.0,112110.0,1.1172916]
[1756246689472,0.10024,112120.0,112110.0,1.68641929]
[1756246689650,0.10024,112120.0,112110.0,1.53453929]
[1756246689860,0.10024,112120.0,112110.0,1.68641929]
[1756246690070,0.10024,112120.0,112110.0,1.53453929]
[1756246690274,0.10024,112120.0,112110.0,1.68641929]
[1756246691116,0.10024,112120.0,112110.0,1.53453929]
[1756246691290,0.10024,112120.0,112110.0,1.65959629]
[1756246692835,0.10024,112120.0,112110.0,1.50771629]
[1756246693047,0.10024,112120.0,112110.0,1.65959629]
[1756246693247,0.10024,112120.0,112110.0,1.50771629]
[1756246693620,0.10024,112120.0,112110.0,1.65959629]
[1756246694424,0.10024,112120.0,112110.0,1.2423486]
[1756246694627,0.10024,112120.0,112110.0,1.65959629]
[1756246695086,0.10024,112120.0,112110.0,1.50771629]
[1756246695333,0.10024,112120.0,112110.0,1.65959629]
[1756246696458,0.10024,112120.0,112110.0,1.0904686]
[1756246696754,0.10024,112120.0,112110.0,1.65959629]
[1756246696932,0.10024,112120.0,112110.0,1.50771629]
[1756246697586,0.10024,112120.0,112110.0,1.65959629]
[1756246699967,0.10182,112120.0,112110.0,0.81970958]
[1756246700175,0.2802003,112120.0,112110.0,0.57636756]
[1756246700381,0.10182,112120.0,112110.0,0.72824756]
[1756246701170,0.10182,112120.0,112110.0,0.71824756]
[1756246701370,0.2802003,112120.0,112110.0,0.72124756]
[1756246702504,0.2802003,112120.0,112110.0,0.57136756]